bitfinex/quotes_ETHUSD_20241212
["timestamp","ask_amount","ask_price","bid_price","bid_amount"]
[1733989313166,0.93444824,3915.3,3915.2,1.445008]
[1733989313515,0.31712418,3915.3,3915.2,1.445008]
[1733989313727,0.93437846,3915.3,3915.2,1.445008]
[1733989315971,3.48845846,3915.3,3915.2,1.445008]
[1733989316872,4.03845846,3915.3,3915.2,1.445008]
[1733989317066,4.84015846,3915.3,3915.2,1.445008]
[1733989319200,0.93437846,3915.3,3915.2,1.445008]
[1733989319408,0.83695851,3915.7,3915.2,1.445008]
[1733989319583,0.61625747,3915.3,3915.2,1.445008]
[1733989321997,2.55398,3915.5,3915.2,1.445008]
[1733989322209,0.61642264,3915.4,3915.2,1.445008]
[1733989322504,2.55398,3915.5,3915.2,1.445008]
[1733989322505,0.61642264,3915.3,3915.2,1.445008]
[1733989325287,0.9884669,3915.3,3915.2,1.445008]
[1733989326823,0.61642264,3915.3,3915.2,1.445008]
[1733989327821,2.55403,3915.4,3915.2,1.445008]
[1733989328018,0.61511721,3915.3,3915.2,1.445008]
[1733989329029,3.16919721,3915.3,3915.2,1.445008]
[1733989329797,4.49579721,3915.3,3915.2,1.445008]
[1733989329996,5.92753668,3915.3,3915.2,1.445008]
[1733989330200,7.24191268,3915.3,3915.2,1.445008]
[1733989330401,8.3007735,3915.3,3915.2,1.445008]
[1733989330931,5.54900301,3915.3,3915.2,1.445008]
[1733989331134,5.92751146,3915.3,3915.2,1.445008]
[1733989331429,5.31241947,3915.3,3915.2,1.445008]
[1733989331631,5.05120723,3915.3,3915.2,1.445008]
[1733989331798,5.92728347,3915.3,3915.2,1.445008]
[1733989332215,5.92727568,3915.3,3915.2,1.445008]
[1733989332394,7.24136528,3915.3,3915.2,1.445008]
[1733989332596,8.3002261,3915.3,3915.2,1.445008]
[1733989333735,7.24136528,3915.3,3915.2,1.445008]
[1733989333911,8.3002261,3915.3,3915.2,1.445008]
[1733989334237,7.68516467,3915.3,3915.2,1.445008]
[1733989334435,11.30016512,3915.3,3915.2,0.9939798]
[1733989334803,11.82959553,3915.3,3915.2,0.9939798]
[1733989335238,11.82959553,3915.3,3915.2,9.8e-06]
[1733989335437,2.55486,3914.1,3913.6,0.7904]
[1733989335851,0.23648764,3914.0,3913.6,0.7904]
[1733989336069,0.23648717,3913.9,3913.6,0.7904]
[1733989336206,2.55486,3914.1,3913.6,0.7904]
[1733989336542,0.23641116,3914.0,3913.6,0.7904]
[1733989336773,2.55486,3914.1,3913.6,0.7904]
[1733989336774,0.23641116,3913.9,3913.6,0.7904]
[1733989336922,0.37837947,3914.3,3913.6,0.7904]
[1733989337123,0.23641777,3914.2,3913.6,0.7904]
[1733989337435,0.23641777,3914.1,3913.6,0.7904]
[1733989337635,0.23641777,3914.0,3913.6,0.7904]
[1733989337830,2.55488,3914.1,3913.6,0.7904]
[1733989338020,0.23627327,3914.0,3913.6,0.7904]
[1733989338350,2.55488,3914.1,3913.6,0.7904]
[1733989338639,0.2362006,3914.0,3913.6,0.7904]
[1733989338839,0.23619795,3913.9,3913.6,0.7904]
[1733989339043,2.55488,3914.1,3913.6,0.7904]
[1733989339215,0.23612287,3914.0,3913.6,0.7904]
[1733989339416,0.23612287,3913.9,3913.6,0.7904]
[1733989339630,0.37837947,3914.3,3913.6,0.7904]
[1733989339842,2.55506,3913.8,3913.5,0.1637611]
[1733989340841,0.55,3914.0,3913.5,0.1637611]
[1733989341048,0.55,3913.8,3913.5,0.1637611]
[1733989341457,0.78600382,3913.9,3913.5,0.1637611]
[1733989341753,2.55483,3914.2,3913.5,0.1637611]
[1733989341913,0.2360315,3914.1,3913.5,0.1637611]
[1733989342118,2.55483,3914.2,3913.5,0.1637611]
[1733989342313,0.2359852,3914.1,3913.5,0.1637611]
[1733989342542,2.55483,3914.2,3913.5,0.1637611]
[1733989342757,0.23598391,3914.1,3913.5,0.1637611]
[1733989342973,0.55,3914.5,3913.6,0.7739]
[1733989343122,0.55,3914.3,3913.6,0.7739]
[1733989343317,0.23598804,3914.2,3913.6,0.7739]
[1733989343636,0.23595044,3914.1,3913.6,0.7739]
[1733989343861,0.55,3914.3,3913.6,0.7739]
[1733989344061,0.23596016,3914.2,3913.6,0.7739]
[1733989344261,0.55,3914.3,3913.6,0.7739]
[1733989344485,0.23595405,3914.2,3913.6,0.7739]
[1733989344787,0.55,3914.3,3913.6,0.7739]
[1733989344926,0.23595491,3914.2,3913.6,0.7739]
[1733989345115,3.10473,3914.3,3913.6,0.7739]
[1733989345321,0.2359552,3914.2,3913.6,0.7739]
[1733989345640,0.2359552,3914.1,3913.6,0.7739]
[1733989345839,0.55,3914.3,3913.6,0.7739]
[1733989346046,0.23596562,3914.2,3913.6,0.7739]
[1733989346379,3.97203013,3914.6,3913.6,0.7739]
[1733989346380,0.55,3914.5,3913.6,0.7739]
[1733989346595,0.23598102,3914.4,3913.6,0.7739]
[1733989346791,0.26336942,3914.6,3914.2,1.33135763]
[1733989347070,0.5554658,3915.3,3914.3,0.7739]
[1733989347071,2.55436,3914.9,3914.3,0.7739]
[1733989347226,0.236038,3914.8,3914.3,0.7739]
[1733989347429,2.55421,3915.1,3914.3,2.10525763]
[1733989347631,0.23609025,3915.0,3914.3,2.10525763]
[1733989347867,0.23609025,3914.9,3914.3,2.10525763]
[1733989348030,2.92926921,3915.1,3914.3,2.10525763]
[1733989348227,0.23610665,3915.0,3914.3,2.10525763]
[1733989348463,0.23610665,3914.9,3914.3,2.10525763]
[1733989348620,0.23610665,3914.8,3914.3,2.10525763]
[1733989348959,2.55428,3915.0,3914.3,2.10525763]
[1733989349275,0.23613378,3914.9,3914.3,2.10525763]
[1733989349502,0.23613378,3914.8,3914.3,2.10525763]
[1733989349815,0.55,3914.8,3913.7,0.7739]
[1733989350092,2.55468,3914.4,3913.7,0.7739]
[1733989350291,0.55,3914.8,3913.5,0.1637611]
[1733989350292,0.23606984,3914.7,3914.0,0.7739]
[1733989350492,2.55469,3914.4,3914.0,0.7739]
[1733989350862,0.23607811,3914.3,3914.0,0.7739]
[1733989351062,2.55469,3914.4,3914.0,0.7739]
[1733989351262,0.23608896,3914.3,3914.0,0.7739]
[1733989351462,2.55469,3914.4,3914.0,0.7739]
[1733989351658,0.23609759,3914.3,3914.0,0.7739]
[1733989351896,2.55469,3914.4,3914.0,0.7739]
[1733989352198,0.54656576,3914.3,3914.0,0.7739]
[1733989352393,2.55469,3914.4,3914.0,0.7739]
[1733989352561,0.23612338,3914.3,3914.0,0.7739]
[1733989352766,0.23612338,3914.2,3914.0,0.7739]
[1733989352964,2.55469,3914.4,3914.0,0.7739]
[1733989353184,0.23612304,3914.3,3914.0,0.7739]
[1733989353384,3.10457,3914.6,3914.0,0.7739]
[1733989353582,0.66358093,3914.5,3914.0,0.7739]
[1733989353810,0.23615413,3914.4,3914.0,0.7739]
[1733989354005,2.55457,3914.6,3914.0,0.7739]
[1733989354220,0.23612926,3914.5,3914.0,0.7739]
[1733989354457,0.23612926,3914.4,3914.0,0.7739]
[1733989354732,0.23612926,3914.3,3914.0,0.7739]
[1733989354955,2.55457,3914.6,3914.0,0.7739]
[1733989355225,0.60866376,3914.5,3914.0,0.7739]
[1733989355382,0.23623696,3914.4,3914.0,0.7739]
[1733989355586,2.9270268,3914.5,3914.0,0.7739]
[1733989355587,0.23623696,3914.3,3914.0,0.7739]
[1733989355884,2.9270268,3914.5,3914.0,0.7739]
[1733989356082,0.2362655,3914.4,3914.0,0.7739]
[1733989356299,0.2362655,3914.3,3914.0,0.7739]
[1733989356492,2.55463,3914.5,3914.0,0.7739]
[1733989356704,0.52956577,3914.4,3914.0,0.7739]
[1733989356909,0.23630029,3914.3,3914.0,0.7739]
[1733989357105,0.23626982,3914.2,3914.0,0.7739]
[1733989357322,2.55474,3914.3,3914.0,0.7739]
[1733989357509,2.79113866,3914.2,3913.8,0.7825]
[1733989357842,2.79117866,3914.1,3913.8,0.7825]
[1733989357989,0.23630866,3914.0,3913.8,0.7825]
[1733989358191,2.55487,3914.1,3913.8,0.7825]
[1733989358543,0.2363186,3914.0,3913.8,0.7825]
[1733989358685,2.55487,3914.1,3913.8,0.7825]
[1733989358885,0.23631004,3914.0,3913.8,0.7825]
[1733989359086,2.55487,3914.1,3913.8,0.7825]
[1733989359488,0.23636196,3914.0,3913.8,0.7825]
[1733989359689,2.55487,3914.1,3913.8,0.7825]
[1733989359887,0.23635325,3914.0,3913.8,0.7825]
[1733989360112,0.236354,3913.9,3913.8,0.7825]
[1733989360500,3.10509069,3913.9,3913.5,0.9462611]
[1733989360708,0.236354,3913.8,3913.5,0.1637611]
[1733989360939,2.55519,3913.6,3913.5,0.1637611]
[1733989361089,2.791544,3913.6,3913.5,0.1637611]
[1733989361536,0.236354,3913.6,3913.5,0.1637611]
[1733989361692,2.86878669,3913.9,3913.5,0.1637611]
[1733989361892,2.55459,3914.6,3913.5,0.1637611]
[1733989361893,0.52324435,3913.8,3913.5,0.1637611]
[1733989362099,0.23636568,3913.7,3913.5,0.1637611]
[1733989362402,2.55459,3914.6,3913.5,0.1637611]
[1733989362403,0.23638298,3913.6,3913.5,0.1637611]
[1733989362610,2.55491,3914.1,3913.5,0.1637611]
[1733989362916,3.5683524,3914.0,3913.5,0.1637611]
[1733989363230,0.23638824,3913.9,3913.5,0.1637611]
[1733989363432,0.23638824,3913.8,3913.5,0.1637611]
[1733989363629,0.23638824,3913.7,3913.5,0.1637611]
[1733989363845,2.95374318,3914.0,3913.5,0.1637611]
[1733989363995,3.0867683,3913.9,3913.5,0.1637611]
[1733989364197,0.23639398,3913.8,3913.5,0.1637611]
[1733989364457,0.23639398,3913.7,3913.5,0.1637611]
[1733989364753,0.23639398,3913.6,3913.5,0.1637611]
[1733989364954,3.22860248,3913.9,3913.5,0.1637611]
[1733989365254,0.23640463,3913.8,3913.5,0.1637611]
[1733989365552,0.23640463,3913.7,3913.5,0.1637611]
[1733989365756,0.23640463,3913.6,3913.5,0.1637611]
[1733989365963,2.85037432,3913.9,3913.5,0.1637611]
[1733989366257,0.52144847,3913.8,3913.5,0.1637611]
[1733989366456,0.23641104,3913.7,3913.5,0.1637611]
[1733989366598,0.23641104,3913.6,3913.5,0.1637611]
[1733989366804,0.28503743,3913.8,3913.5,0.1637611]
[1733989367041,0.23640141,3913.7,3913.5,0.1637611]
[1733989367218,0.28503743,3913.8,3913.5,0.1637611]
[1733989367446,0.23639146,3913.7,3913.5,0.1637611]
[1733989367625,0.28503743,3913.8,3913.5,0.1637611]
[1733989367959,0.23639541,3913.7,3913.5,0.1637611]
[1733989368226,0.28503743,3913.8,3913.5,0.1637611]
[1733989368380,0.23638214,3913.7,3913.5,0.1637611]
[1733989368549,0.28503743,3913.8,3913.5,0.1637611]
[1733989368753,0.23638148,3913.7,3913.5,0.1637611]
[1733989368953,0.28503743,3913.8,3913.5,0.1637611]
[1733989369275,0.29326548,3914.4,3913.8,0.7825]
[1733989369471,0.23638743,3914.3,3913.8,0.7825]
[1733989369670,0.9282199,3914.7,3913.8,0.7825]
[1733989369671,0.23638743,3914.2,3913.8,0.7825]
[1733989369877,0.23638743,3914.1,3913.8,0.7825]
[1733989370112,2.55468,3914.4,3913.8,0.7825]
[1733989370418,0.23637135,3914.3,3913.8,0.7825]
[1733989370607,0.23637135,3914.2,3913.8,0.7825]
[1733989370749,0.23637135,3914.1,3913.8,0.7825]
[1733989370955,2.55468,3914.4,3913.8,0.7825]
[1733989371209,0.6145836,3914.3,3913.8,0.7825]
[1733989371357,0.23637501,3914.2,3913.8,0.7825]
[1733989371559,0.23637501,3914.1,3913.8,0.7825]
[1733989371755,0.23637501,3914.0,3913.8,0.7825]
[1733989371971,0.23637634,3913.9,3913.8,0.7825]
[1733989372404,0.70254353,3914.2,3913.8,0.7825]
[1733989372405,0.32434166,3914.2,3913.8,0.7825]
[1733989372609,0.23637956,3914.1,3913.8,0.7825]
[1733989372807,0.23637956,3914.0,3913.8,0.7825]
[1733989373007,0.32434166,3914.2,3913.8,0.7825]
[1733989373211,0.23637288,3914.1,3913.8,0.7825]
[1733989373411,0.23637288,3914.0,3913.8,0.7825]
[1733989373591,0.32434166,3914.2,3913.8,0.7825]
[1733989373807,0.23636465,3914.1,3913.8,0.7825]
[1733989374123,0.23636465,3914.0,3913.5,0.9802611]
[1733989374330,0.23636465,3913.9,3913.5,0.9802611]
[1733989374479,0.23636465,3913.8,3913.5,0.9802611]
[1733989374668,0.23636465,3913.7,3913.5,0.9802611]
[1733989374993,0.23633262,3913.6,3913.5,0.9802611]
[1733989375575,0.23631768,3913.6,3913.5,0.9802611]
[1733989376121,2.55508,3913.8,3913.5,0.9802611]
[1733989376326,0.52962419,3913.7,3913.5,0.9802611]
[1733989376511,0.29332122,3913.7,3913.5,0.9802611]
[1733989377274,0.23634503,3913.6,3913.5,0.9802611]
[1733989377500,0.2363444,3913.6,3913.5,0.9802611]
[1733989378011,0.29332122,3913.7,3913.5,0.9802611]
[1733989378208,2.55494,3914.0,3913.5,0.9802611]
[1733989378514,0.23641071,3913.9,3913.5,0.9802611]
[1733989378670,2.5548,3914.2,3913.5,0.9802611]
[1733989379027,0.61465633,3914.1,3913.5,0.9802611]
[1733989379175,0.61465633,3914.0,3913.5,0.9802611]
[1733989379377,0.23640606,3913.9,3913.5,0.9802611]
[1733989379690,0.23640606,3913.8,3913.5,0.9802611]
[1733989379899,0.23640606,3913.7,3913.5,0.9802611]
[1733989380209,0.37836973,3914.0,3913.5,0.9802611]
[1733989380412,2.55506,3913.8,3913.5,0.1637611]
[1733989380714,0.23648643,3913.7,3913.5,0.1637611]
[1733989381010,0.23648643,3913.6,3913.5,0.1637611]
[1733989381170,2.83674814,3914.1,3913.5,0.9802611]
[1733989381378,0.97800642,3914.0,3913.5,0.9802611]
[1733989381709,0.61489161,3913.9,3913.5,0.9802611]
[1733989381916,0.23649677,3913.8,3913.5,0.9802611]
[1733989382120,0.36311481,3914.0,3913.5,0.9802611]
[1733989382121,0.23649677,3913.7,3913.5,0.9802611]
[1733989382276,0.23649677,3913.6,3913.5,0.9802611]
[1733989382479,0.37841896,3914.2,3913.5,1.00581309]
[1733989382716,0.23652645,3914.1,3913.9,0.8165]
[1733989383011,2.55469,3914.4,3913.9,0.8165]
[1733989383012,0.23652645,3914.0,3913.9,0.8165]
[1733989383575,3.3489,3914.7,3913.9,0.8165]
[1733989383913,2.11668147,3914.6,3913.9,0.8165]
[1733989384080,0.61498965,3914.5,3913.9,0.8165]
[1733989384287,0.61498965,3914.4,3913.9,0.8165]
[1733989384502,0.62595928,3914.6,3913.9,0.8165]
[1733989384503,0.61498965,3914.3,3913.9,0.8165]
[1733989384677,0.61498965,3914.2,3913.9,0.8165]
[1733989384878,0.23653448,3914.1,3913.9,0.8165]
[1733989385108,2.55462,3914.5,3913.9,0.8165]
[1733989385109,0.23653448,3914.0,3913.9,0.8165]
[1733989393643,0.37880591,3914.3,3913.9,0.8165]
[1733989393940,0.62595928,3914.6,3913.9,0.8165]
[1733989393941,0.23676758,3914.2,3913.9,0.8165]
[1733989394142,0.7944,3914.7,3913.9,0.8165]
[1733989394143,0.23676758,3914.1,3913.9,0.8165]
[1733989394337,0.3788026,3914.6,3913.9,0.8165]
[1733989394546,0.75919904,3914.5,3913.9,0.8165]
[1733989394750,0.23672023,3914.4,3914.0,1.22961148]
[1733989394936,0.23672023,3914.3,3913.9,3.21467558]
[1733989395137,2.55434,3914.9,3914.0,1.22959059]
[1733989395336,0.61533418,3914.8,3913.9,3.21467558]
[1733989395526,2.55434,3914.9,3913.9,3.21467558]
[1733989395527,0.61533418,3914.7,3914.0,1.22968056]
[1733989395726,0.61533418,3914.6,3914.1,1.22968056]
[1733989395914,0.23666699,3914.5,3913.9,3.21467558]
[1733989396110,0.37868212,3914.8,3914.0,1.22967206]
[1733989396321,0.23667854,3914.4,3914.1,1.22967206]
[1733989396521,0.2366437,3914.3,3913.9,3.21467558]
[1733989396749,0.89290763,3914.8,3914.0,1.22960456]
[1733989396951,0.61529357,3914.7,3914.1,1.22959815]
[1733989397256,0.61529357,3914.6,3913.9,3.21467558]
[1733989397414,0.23665137,3914.5,3914.0,1.2295961]
[1733989397613,0.23665137,3914.4,3914.1,1.2295961]
[1733989397849,0.43932322,3914.7,3913.9,3.21467558]
[1733989398051,0.23663023,3914.6,3914.0,1.22950509]
[1733989398275,0.55,3914.4,3914.1,1.22950509]
[1733989398553,0.55,3914.6,3913.9,3.21467558]
[1733989398850,0.55,3914.4,3914.0,1.2294204]
[1733989399050,0.55,3914.4,3913.9,3.17941707]
[1733989399214,0.55,3914.6,3914.0,1.22940969]
[1733989399414,0.23663853,3914.5,3914.1,1.22940969]
[1733989399615,0.23663853,3914.4,3913.9,3.17941707]
[1733989399819,0.55,3914.7,3914.0,1.2293272]
[1733989400041,0.55,3914.5,3914.1,1.2293166]
[1733989400249,0.55,3914.3,3913.9,3.17941707]
[1733989400418,0.55,3914.3,3914.0,1.22927946]
[1733989400748,0.55,3914.5,3913.9,2.11259912]
[1733989400929,0.37860384,3914.6,3913.9,2.11259912]
[1733989400930,0.55,3914.3,3914.0,1.22928324]
[1733989401130,0.55,3914.3,3913.9,3.17941707]
[1733989401338,0.92848876,3914.6,3913.9,2.11259912]
[1733989401543,0.55,3914.4,3914.0,1.22923649]
[1733989401749,0.55,3914.4,3913.9,2.11259912]
[1733989401750,0.23654268,3914.3,3913.9,2.11259912]
[1733989402048,0.23654673,3914.2,3913.9,2.11259912]
[1733989402249,0.36424569,3914.7,3913.9,2.11259912]
[1733989402250,0.92848652,3914.6,3913.9,2.11259912]
[1733989402460,0.36424569,3914.7,3913.9,2.11259912]
[1733989402461,0.55,3914.4,3913.9,2.11259912]
[1733989402756,0.23654589,3914.3,3913.9,2.11259912]
[1733989402950,0.55,3914.2,3914.0,1.2291778]
[1733989403248,0.55,3914.7,3913.9,2.11259912]
[1733989403454,0.55,3914.5,3914.0,1.22913873]
[1733989403650,0.55,3914.3,3913.9,2.11259912]
[1733989403851,0.55,3914.3,3914.0,1.22911841]
[1733989404053,0.55,3914.3,3913.8,1.06681795]
[1733989404054,0.37844656,3914.9,3914.2,1.33135763]
[1733989404253,0.55,3914.7,3914.5,1.33135763]
[1733989404634,0.81894891,3915.2,3914.5,1.33135763]
[1733989404635,0.55,3915.0,3914.5,1.33135763]
[1733989404959,0.55,3914.8,3914.5,1.33135763]
[1733989405159,0.55,3915.0,3914.5,1.33135763]
[1733989405332,0.55,3914.8,3914.5,1.33135763]
[1733989405722,0.44050281,3915.2,3914.5,1.33135763]
[1733989405723,0.55,3915.0,3914.5,1.33135763]
[1733989405921,0.55,3914.9,3914.5,1.33135763]
[1733989406263,0.7864428,3914.8,3914.3,0.8245]
[1733989406583,0.55,3914.6,3914.3,0.8245]
[1733989406872,0.55,3914.4,3914.3,0.8245]
[1733989407218,0.55,3914.7,3914.3,0.8245]
[1733989407446,0.55,3914.5,3914.3,0.8245]
[1733989407819,0.55,3914.7,3914.3,0.8245]
[1733989408023,0.55,3914.5,3914.3,0.8245]
[1733989408219,0.55,3914.7,3914.3,0.8245]
[1733989408457,0.55,3914.5,3914.3,0.8245]
[1733989408641,0.55,3914.7,3914.3,0.8245]
[1733989408840,0.55,3914.5,3914.3,0.8245]
[1733989409055,0.55,3914.8,3914.3,0.8245]
[1733989409256,0.55,3914.6,3914.3,0.8245]
[1733989409678,1.3512,3914.4,3913.7,1.06681795]
[1733989409974,0.55,3914.0,3913.6,2.15585763]
[1733989410474,3.10483,3914.2,3913.6,2.15585763]
[1733989410773,0.55,3913.8,3913.5,0.1637611]
[1733989410946,0.55,3913.6,3913.5,0.1637611]
[1733989411145,0.786213,3913.6,3913.5,0.1637611]
[1733989411568,1.16418145,3913.6,3913.5,0.1637611]
[1733989412248,0.786213,3913.6,3913.5,0.1637611]
[1733989414761,0.55,3913.7,3913.5,0.1637611]
[1733989415083,0.55,3913.6,3913.5,0.1637611]
[1733989415379,0.78618698,3913.6,3913.5,0.1637611]
[1733989418111,0.23611932,3913.6,3913.5,0.1637611]
[1733989418257,0.78611932,3913.6,3913.5,0.1637611]
[1733989420751,0.55,3913.6,3913.5,0.1637611]
[1733989420858,0.78610969,3913.6,3913.5,0.1637611]
[1733989421059,0.55,3913.6,3913.5,0.1637611]
[1733989421300,0.78611888,3913.6,3913.5,0.1637611]
[1733989421687,0.55,3913.6,3913.5,0.1637611]
[1733989421890,0.55,3913.6,3913.5,0.9882611]
[1733989422093,0.39367472,3914.3,3913.6,0.8245]
[1733989422263,0.23614721,3914.2,3913.8,1.33135763]
[1733989422462,0.23614721,3914.1,3913.8,1.33135763]
[1733989422657,0.23614721,3914.0,3913.8,1.33135763]
[1733989422865,0.15962227,3914.6,3913.8,1.33135763]
[1733989423112,0.61400615,3914.5,3913.9,0.8245]
[1733989423318,1.16400615,3914.4,3913.9,0.8245]
[1733989423524,0.55,3914.2,3913.9,0.8245]
[1733989423985,0.55,3914.2,3914.1,1.33135763]
[1733989424386,0.55,3914.8,3914.1,1.33135763]
[1733989424631,0.55,3914.6,3914.1,1.33135763]
[1733989424921,0.55,3914.4,3914.1,1.33135763]
[1733989425119,0.55,3914.2,3914.1,1.33135763]
[1733989425331,0.55,3914.6,3914.1,1.33135763]
[1733989425665,0.55,3914.4,3914.1,1.33135763]
[1733989426028,0.9278415,3914.7,3914.1,1.33135763]
[1733989426227,0.55,3914.5,3914.1,1.33135763]
[1733989426461,0.55,3914.5,3914.2,0.8245]
[1733989426661,0.55,3914.8,3914.2,0.8245]
[1733989426862,0.55,3914.3,3914.2,0.8245]
[1733989427319,0.7861426,3914.3,3914.2,0.8245]
[1733989427521,0.55,3914.7,3914.2,0.8245]
[1733989427742,0.55,3914.5,3914.2,0.8245]
[1733989428068,0.55,3914.3,3914.2,0.8245]
[1733989428807,0.55,3914.7,3914.2,0.8245]
[1733989428983,0.23613317,3914.6,3914.2,0.8245]
[1733989429156,0.8012,3915.0,3914.2,0.8245]
[1733989429157,0.78613317,3914.5,3914.2,0.8245]
[1733989429343,0.55,3914.3,3914.2,0.8245]
[1733989429805,2.55448,3914.7,3914.2,0.8245]
[1733989429806,0.55,3914.6,3914.2,0.8245]
[1733989429977,0.23612293,3914.5,3914.2,0.8245]
[1733989430159,0.78612293,3914.4,3914.2,0.8245]
[1733989430360,0.55,3914.6,3914.2,0.8245]
[1733989430788,0.55,3914.4,3914.2,0.8245]
[1733989430945,0.55,3914.6,3914.2,0.8245]
[1733989431170,0.55,3914.4,3914.2,0.8245]
[1733989431881,0.55,3914.3,3914.2,0.8245]
[1733989432062,0.78611384,3914.3,3914.2,0.8245]
[1733989432263,0.78610873,3914.3,3914.2,0.8245]
[1733989432797,0.78610737,3914.3,3914.2,0.8245]
[1733989433887,0.78606591,3914.3,3914.2,0.8245]
[1733989434180,0.78606311,3914.3,3914.2,0.8245]
[1733989434375,0.78606311,3914.3,3913.7,1.06681795]
[1733989434579,2.55448,3914.7,3913.9,1.33135763]
[1733989434580,0.78605152,3914.2,3913.9,1.33135763]
[1733989434876,0.78605152,3914.2,3913.6,1.06681795]
[1733989434877,0.55,3914.0,3913.6,1.06681795]
[1733989435190,0.55,3913.8,3913.6,1.33135763]
[1733989435344,0.78602654,3913.7,3913.6,1.33135763]
[1733989435741,0.55,3913.6,3913.5,0.1637611]
[1733989435983,3.34121654,3913.6,3913.5,0.1637611]
[1733989436406,3.75407819,3913.6,3913.5,0.1637611]
[1733989436890,1.19888819,3913.6,3913.5,0.1637611]
[1733989437649,0.78602654,3913.6,3913.5,0.1637611]
[1733989439869,0.78597892,3913.6,3913.5,0.1637611]
[1733989440587,1.1635155,3913.6,3913.5,0.1637611]
[1733989440799,1.9509155,3913.6,3913.5,0.1637611]
[1733989441288,2.11054772,3913.6,3913.5,0.1637611]
[1733989441483,3.00508208,3913.6,3913.5,0.1637611]
[1733989441646,3.87906848,3913.6,3913.5,0.1637611]
[1733989441848,3.00508208,3913.6,3913.5,0.1637611]
[1733989442048,3.39838028,3913.6,3913.5,0.1637611]
[1733989442243,3.00508208,3913.6,3913.5,0.1637611]
[1733989442449,2.60915404,3913.6,3913.5,0.1637611]
[1733989442670,3.00458171,3913.6,3913.5,0.1637611]
[1733989444046,2.84491634,3913.6,3913.5,0.1637611]
[1733989445249,2.23193436,3913.6,3913.5,0.1637611]
[1733989445393,2.84449964,3913.6,3913.5,0.1637611]
[1733989451229,5.39968964,3913.6,3913.5,0.1637611]
[1733989451824,4.78712436,3913.6,3913.5,0.1637611]
[1733989452105,5.39861769,3913.6,3913.5,0.1637611]
[1733989453005,5.6645704,3913.6,3913.5,0.1637611]
[1733989454636,5.05307707,3913.6,3913.5,0.1637611]
[1733989454842,5.66439063,3913.6,3913.5,0.1637611]
[1733989455226,6.99574826,3913.6,3913.5,0.1637611]
[1733989457400,6.99574826,3913.6,3913.5,1.1e-06]
[1733989460218,7.38761593,3913.6,3913.5,1.1e-06]
[1733989460809,7.54845774,3913.6,3913.5,1.1e-06]
[1733989461141,7.3887794,3913.6,3913.5,1.1e-06]
[1733989461337,6.99645725,3913.6,3913.5,1.1e-06]
[1733989461744,7.15613559,3913.6,3913.5,1.1e-06]
[1733989461914,6.99645725,3913.6,3913.5,1.1e-06]
[1733989462323,7.15613559,3913.6,3913.5,1.1e-06]
[1733989465413,7.28179376,3913.6,3913.5,1.1e-06]
[1733989467265,7.28356725,3913.6,3913.5,1.1e-06]
[1733989470314,7.28446819,3913.6,3913.5,1.1e-06]
[1733989470722,7.28447917,3913.6,3913.5,1.1e-06]
[1733989474014,7.158821,3913.6,3913.5,1.1e-06]
[1733989475519,5.04006337,3913.6,3913.5,1.1e-06]
[1733989475721,4.14552901,3913.6,3913.5,1.1e-06]
[1733989478689,1.59033901,3913.6,3913.5,1.1e-06]
[1733989478891,0.7743863,3913.6,3913.5,0.8284011]
[1733989479027,0.61471509,3913.6,3913.5,0.8284011]
[1733989479960,0.23644938,3913.6,3913.5,0.8284011]
[1733989480320,0.37804176,3914.2,3913.5,0.8284011]
[1733989480528,0.15962446,3914.3,3913.7,1.33135763]
[1733989480529,0.61432363,3914.1,3913.7,1.33135763]
[1733989480744,0.61432363,3914.0,3913.8,0.8284]
[1733989480939,0.23628187,3913.9,3913.8,0.8284]
[1733989481882,0.78628187,3913.9,3913.8,0.8284]
[1733989484329,0.55,3914.3,3913.8,0.8284]
[1733989484527,0.55,3914.1,3913.8,0.8284]
[1733989484761,0.55,3913.9,3913.8,0.8284]
[1733989484937,0.78587235,3913.9,3913.8,0.8284]
[1733989485123,0.55,3913.9,3913.8,0.8284]
[1733989485323,0.55,3914.2,3913.8,0.8284]
[1733989485559,0.55,3914.0,3913.8,0.8284]
[1733989485903,0.55,3914.3,3913.8,0.8284]
[1733989486045,0.92710164,3914.3,3913.8,2.15975763]
[1733989486250,0.55,3914.3,3913.9,0.7589]
[1733989487292,0.55,3914.6,3913.9,0.7589]
[1733989487452,0.55,3914.4,3913.9,0.7589]
[1733989489270,3.10471,3914.4,3913.9,0.7589]
[1733989489475,2.55475,3914.3,3913.9,0.7589]
[1733989489792,0.55,3914.2,3913.9,0.7589]
[1733989490641,3.10461,3914.5,3913.9,0.7589]
[1733989490904,0.55,3914.3,3913.9,0.7589]
[1733989492161,0.37665386,3914.8,3914.1,1.33135763]
[1733989492346,0.64246591,3915.2,3914.7,2.09025763]
[1733989492545,0.23538254,3915.1,3914.7,2.09025763]
[1733989492759,2.55386,3915.7,3914.8,0.8191]
[1733989492760,0.23539327,3915.6,3914.8,0.8191]
[1733989492991,0.23539327,3915.5,3914.8,0.8191]
[1733989493167,2.55386,3915.7,3914.8,0.8191]
[1733989493334,0.23529203,3915.6,3914.8,0.8191]
[1733989493533,0.26583287,3915.9,3914.3,0.53220642]
[1733989493534,0.23529203,3915.8,3915.0,1.33135763]
[1733989493739,0.23529203,3915.7,3915.1,0.8191]
[1733989493958,0.23529203,3915.8,3915.1,0.8191]
[1733989494739,0.55,3915.7,3915.1,0.8191]
[1733989496708,0.26583287,3915.9,3915.1,0.8191]
[1733989496907,0.55,3915.8,3915.1,0.8191]
[1733989497311,2.55339,3916.4,3915.0,1.33135763]
[1733989497312,2.55345,3916.3,3915.4,0.8191]
[1733989497510,0.23497314,3916.2,3915.4,0.8191]
[1733989498017,2.55345,3916.3,3915.4,0.8191]
[1733989498526,0.55,3916.1,3915.4,0.8191]
[1733989499228,2.55362,3916.0,3915.4,0.8191]
[1733989499535,0.55,3915.9,3915.4,0.8191]
[1733989500484,3.10369,3915.9,3915.4,0.8191]
[1733989501040,0.55,3915.9,3915.4,0.8191]
[1733989501214,0.26585308,3916.4,3915.4,0.8191]
[1733989501215,0.55,3916.1,3915.4,0.8191]
[1733989501613,0.55,3916.3,3915.5,1.33135763]
[1733989501800,0.55,3916.3,3915.6,0.8191]